[Event "*** Titled Tuesday Blitz"]
[Site "Chess.com"]
[Date "2018.06.05"]
[Round "3"]
[White "gemarin"]
[Black "Anurag328"]
[Result "0-1"]
[WhiteElo "1814"]
[BlackElo "2661"]
[TimeControl "180+2"]
[EndTime "13:38:26 PDT"]
[Termination "Anurag328 won by resignation"]

1. d4 {[%clk 0:02:55.7]} 1... g6 {[%clk 0:03:01.4]} 2. c4 {[%clk 0:02:55.8]}
2... Bg7 {[%clk 0:03:02.9]} 3. Nc3 {[%clk 0:02:55.5]} 3... d6 {[%clk 0:03:04.4]}
4. e4 {[%clk 0:02:53.5]} 4... Nf6 {[%clk 0:03:05.9]} 5. Be2 {[%clk 0:02:54.5]}
5... O-O {[%clk 0:03:07.4]} 6. Bg5 {[%clk 0:02:55.9]} 6... c5 {[%clk 0:03:05.5]}
7. d5 {[%clk 0:02:54.3]} 7... h6 {[%clk 0:03:05.8]} 8. Bf4 {[%clk 0:02:49.6]}
8... Na6 {[%clk 0:03:04.1]} 9. Qd2 {[%clk 0:02:49.5]} 9... Kh7 {[%clk
0:03:03.8]} 10. h3 {[%clk 0:02:48.7]} 10... Nc7 {[%clk 0:03:05]} 11. Nf3 {[%clk
0:02:48.3]} 11... Re8 {[%clk 0:03:06.5]} 12. O-O {[%clk 0:02:48.1]} 12... e5
{[%clk 0:03:00]} 13. Be3 {[%clk 0:02:45.8]} 13... Rf8 {[%clk 0:02:49.2]} 14. Nh2
{[%clk 0:02:46.1]} 14... Rb8 {[%clk 0:02:46]} 15. a4 {[%clk 0:02:45.2]} 15...
Nd7 {[%clk 0:02:38.5]} 16. g4 {[%clk 0:02:25.9]} 16... f5 {[%clk 0:02:06.6]} 17.
exf5 {[%clk 0:02:25.4]} 17... gxf5 {[%clk 0:02:08.5]} 18. gxf5 {[%clk
0:02:25.6]} 18... Nf6 {[%clk 0:02:07.9]} 19. Bd3 {[%clk 0:02:17.2]} 19... Qe8
{[%clk 0:02:09.3]} 20. Qc2 {[%clk 0:02:11.2]} 20... Na6 {[%clk 0:02:09.8]} 21.
Na2 {[%clk 0:02:08.7]} 21... e4 {[%clk 0:02:10]} 22. Be2 {[%clk 0:02:06.9]}
22... Bxf5 {[%clk 0:02:11.6]} 23. Ng4 {[%clk 0:01:59.2]} 23... Qg6 {[%clk
0:02:08.9]} 24. Kh1 {[%clk 0:01:51.9]} 24... Nxg4 {[%clk 0:02:06.7]} 25. Bxg4
{[%clk 0:01:36.5]} 25... Bxg4 {[%clk 0:02:07.7]} 26. hxg4 {[%clk 0:01:36.3]}
26... Qxg4 {[%clk 0:01:57.5]} 27. Nc3 {[%clk 0:01:11.6]} 27... Bxc3 {[%clk
0:01:52.6]} 28. Qxc3 {[%clk 0:01:10.1]} 28... Rf5 {[%clk 0:01:53.4]} 0-1

[Event "*** Titled Tuesday Blitz"]
[Site "Chess.com"]
[Date "2018.06.05"]
[Round "3"]
[White "timator"]
[Black "Supernotar"]
[Result "0-1"]
[WhiteElo "2340"]
[BlackElo "2428"]
[TimeControl "180+2"]
[EndTime "13:38:30 PDT"]
[Termination "Supernotar won on time"]

1. Nf3 {[%clk 0:03:01.9]} 1... c5 {[%clk 0:03:00.2]} 2. c4 {[%clk 0:03:00.7]}
2... Nc6 {[%clk 0:03:00.7]} 3. Nc3 {[%clk 0:03:01.2]} 3... g6 {[%clk 0:03:01.1]}
4. e3 {[%clk 0:03:00.4]} 4... Nf6 {[%clk 0:03:01.3]} 5. d4 {[%clk 0:03:01.5]}
5... cxd4 {[%clk 0:03:01.8]} 6. exd4 {[%clk 0:03:03.4]} 6... d5 {[%clk
0:03:02.7]} 7. cxd5 {[%clk 0:03:04.6]} 7... Nxd5 {[%clk 0:03:03.2]} 8. Bc4
{[%clk 0:03:06.1]} 8... Nxc3 {[%clk 0:02:58.6]} 9. Qb3 {[%clk 0:03:07.3]} 9...
e6 {[%clk 0:02:59.4]} 10. bxc3 {[%clk 0:03:07.7]} 10... Bd7 {[%clk 0:02:59.1]}
11. Bg5 {[%clk 0:03:03.1]} 11... Qc7 {[%clk 0:02:54.1]} 12. Bd3 {[%clk
0:02:54.4]} 12... Bg7 {[%clk 0:02:52.3]} 13. O-O {[%clk 0:02:53.2]} 13... O-O
{[%clk 0:02:52.8]} 14. Rab1 {[%clk 0:02:53.5]} 14... b6 {[%clk 0:02:53.2]} 15.
Rfc1 {[%clk 0:02:52.2]} 15... Na5 {[%clk 0:02:53.1]} 16. Qb4 {[%clk 0:02:50.6]}
16... Rfc8 {[%clk 0:02:49.8]} 17. Bh4 {[%clk 0:02:43.9]} 17... Bf8 {[%clk
0:02:48.6]} 18. Qb2 {[%clk 0:02:44.2]} 18... Nc4 {[%clk 0:02:49.2]} 19. Qe2
{[%clk 0:02:44.5]} 19... b5 {[%clk 0:02:49.3]} 20. Bg3 {[%clk 0:02:44.9]} 20...
Bd6 {[%clk 0:02:48.8]} 21. Bxd6 {[%clk 0:02:41.4]} 21... Qxd6 {[%clk 0:02:49.5]}
22. Ne5 {[%clk 0:02:42.8]} 22... Nxe5 {[%clk 0:02:19.6]} 23. dxe5 {[%clk
0:02:30]} 23... Qa3 {[%clk 0:02:16.9]} 24. Rb3 {[%clk 0:02:28.5]} 24... Qxc1+
{[%clk 0:02:16.9]} 0-1

[Event "*** Titled Tuesday Blitz"]
[Site "Chess.com"]
[Date "2018.06.05"]
[Round "3"]
[White "Parhamov"]
[Black "BartoszSocko"]
[Result "1-0"]
[WhiteElo "2835"]
[BlackElo "2614"]
[TimeControl "180+2"]
[EndTime "13:38:33 PDT"]
[Termination "Parhamov won by resignation"]

1. g3 {[%clk 0:03:01.1]} 1... e6 {[%clk 0:03:01.9]} 2. Bg2 {[%clk 0:03:02.2]}
2... Nf6 {[%clk 0:03:03.2]} 3. Nf3 {[%clk 0:03:02.6]} 3... d5 {[%clk 0:03:04.4]}
4. O-O {[%clk 0:03:03]} 4... Be7 {[%clk 0:03:05.6]} 5. b3 {[%clk 0:03:02.9]}
5... O-O {[%clk 0:03:04.9]} 6. Bb2 {[%clk 0:03:00.8]} 6... b6 {[%clk 0:03:06.1]}
7. e3 {[%clk 0:03:01.6]} 7... Bb7 {[%clk 0:03:07.4]} 8. Qe2 {[%clk 0:03:02.3]}
8... c5 {[%clk 0:03:07.5]} 9. Rd1 {[%clk 0:03:03]} 9... Nc6 {[%clk 0:03:06]} 10.
c4 {[%clk 0:02:59.2]} 10... dxc4 {[%clk 0:02:56.9]} 11. bxc4 {[%clk 0:02:59.7]}
11... Qc7 {[%clk 0:02:54.2]} 12. Nc3 {[%clk 0:02:59.1]} 12... Rad8 {[%clk
0:02:54.6]} 13. Rac1 {[%clk 0:02:59]} 13... Ba6 {[%clk 0:02:49.1]} 14. Nb5
{[%clk 0:02:58.7]} 14... Bxb5 {[%clk 0:02:38.8]} 15. cxb5 {[%clk 0:02:59.6]}
15... Nb4 {[%clk 0:02:40.4]} 16. a3 {[%clk 0:02:57]} 16... Nd3 {[%clk
0:02:39.1]} 17. Rc2 {[%clk 0:02:46.5]} 17... Nxb2 {[%clk 0:02:30.6]} 18. Rxb2
{[%clk 0:02:46.2]} 18... Ne4 {[%clk 0:02:30.9]} 19. Rc2 {[%clk 0:02:46.8]} 19...
Bf6 {[%clk 0:02:28.2]} 20. Nd4 {[%clk 0:02:25.3]} 20... Bxd4 {[%clk 0:02:13.9]}
21. exd4 {[%clk 0:02:23.8]} 21... Nf6 {[%clk 0:01:59.5]} 22. dxc5 {[%clk
0:02:24.1]} 22... bxc5 {[%clk 0:02:01.4]} 23. Qe3 {[%clk 0:02:19.2]} 23... c4
{[%clk 0:01:56.7]} 24. Bc6 {[%clk 0:02:17.8]} 24... Nd5 {[%clk 0:01:52.5]} 25.
Qc5 {[%clk 0:02:15.5]} 25... Nb6 {[%clk 0:01:48.6]} 26. Qb4 {[%clk 0:02:13.3]}
26... Rd4 {[%clk 0:01:35.8]} 27. a4 {[%clk 0:02:14.1]} 27... Rfd8 {[%clk
0:01:36.8]} 28. a5 {[%clk 0:02:15]} 28... Nd5 {[%clk 0:01:38]} 29. Qc5 {[%clk
0:02:08.2]} 29... Qxa5 {[%clk 0:01:36.2]} 30. Qxd4 {[%clk 0:02:09]} 30... Nb4
{[%clk 0:01:06.4]} 31. Qc3 {[%clk 0:02:06.9]} 31... Qa4 {[%clk 0:01:04]} 32.
Rcc1 {[%clk 0:01:54.7]} 32... Na2 {[%clk 0:01:04]} 33. Qxc4 {[%clk 0:01:56]} 1-0

[Event "*** Titled Tuesday Blitz"]
[Site "Chess.com"]
[Date "2018.06.05"]
[Round "3"]
[White "IMAghasiyevKamal"]
[Black "maximlavrov"]
[Result "0-1"]
[WhiteElo "2477"]
[BlackElo "2460"]
[TimeControl "180+2"]
[EndTime "13:38:42 PDT"]
[Termination "maximlavrov won by resignation"]

1. d4 {[%clk 0:03:00.7]} 1... g6 {[%clk 0:03:00.1]} 2. c4 {[%clk 0:02:56.3]}
2... Bg7 {[%clk 0:03:01]} 3. Nc3 {[%clk 0:02:57.3]} 3... d6 {[%clk 0:03:01.4]}
4. e4 {[%clk 0:02:57.9]} 4... e5 {[%clk 0:03:02.5]} 5. dxe5 {[%clk 0:02:56]}
5... dxe5 {[%clk 0:03:04.4]} 6. Qxd8+ {[%clk 0:02:43]} 6... Kxd8 {[%clk
0:03:06.3]} 7. Nf3 {[%clk 0:02:35.8]} 7... f6 {[%clk 0:03:06.3]} 8. c5 {[%clk
0:02:10.4]} 8... Be6 {[%clk 0:03:02.6]} 9. Be3 {[%clk 0:02:11.4]} 9... Nd7
{[%clk 0:02:57.5]} 10. O-O-O {[%clk 0:02:03.4]} 10... Bh6 {[%clk 0:02:57.8]} 11.
Bxh6 {[%clk 0:01:57.1]} 11... Nxh6 {[%clk 0:02:58.9]} 12. h3 {[%clk 0:01:58.3]}
12... Ke7 {[%clk 0:02:50.4]} 13. b4 {[%clk 0:01:46.3]} 13... a5 {[%clk
0:02:50.2]} 14. a3 {[%clk 0:01:47.3]} 14... axb4 {[%clk 0:02:30.7]} 15. axb4
{[%clk 0:01:48]} 15... c6 {[%clk 0:02:31.8]} 16. Kb2 {[%clk 0:01:46.4]} 16... b6
{[%clk 0:02:24.6]} 17. cxb6 {[%clk 0:01:41.6]} 17... Rhb8 {[%clk 0:02:25.2]} 18.
Ra1 {[%clk 0:01:22.4]} 18... Rxa1 {[%clk 0:02:02.5]} 19. Kxa1 {[%clk 0:01:22.6]}
19... Nf7 {[%clk 0:01:44.7]} 20. b5 {[%clk 0:01:21]} 20... c5 {[%clk 0:01:37.6]}
21. Be2 {[%clk 0:01:08.4]} 21... Nxb6 {[%clk 0:01:37.6]} 22. Rc1 {[%clk
0:01:01.9]} 22... Nd6 {[%clk 0:01:37.6]} 23. Nd5+ {[%clk 0:01:00.1]} 23... Bxd5
{[%clk 0:01:32.3]} 24. exd5 {[%clk 0:01:01.2]} 24... c4 {[%clk 0:01:33.4]} 25.
Nd2 {[%clk 0:00:58.6]} 25... Rc8 {[%clk 0:01:34.5]} 26. Kb2 {[%clk 0:00:50.8]}
26... c3+ {[%clk 0:01:35.2]} 0-1

[Event "*** Titled Tuesday Blitz"]
[Site "Chess.com"]
[Date "2018.06.05"]
[Round "3"]
[White "MateusViageiro"]
[Black "vincentmasuka"]
[Result "0-1"]
[WhiteElo "2167"]
[BlackElo "2250"]
[TimeControl "180+2"]
[EndTime "13:39:01 PDT"]
[Termination "vincentmasuka won by resignation"]

1. e4 {[%clk 0:03:01.9]} 1... c6 {[%clk 0:03:00.4]} 2. d4 {[%clk 0:03:02]} 2...
d5 {[%clk 0:03:01.9]} 3. Nc3 {[%clk 0:03:03]} 3... dxe4 {[%clk 0:03:02.5]} 4.
Nxe4 {[%clk 0:03:03.6]} 4... Nf6 {[%clk 0:03:03.9]} 5. Ng3 {[%clk 0:03:04.2]}
5... h5 {[%clk 0:03:03.7]} 6. h4 {[%clk 0:03:03.6]} 6... Bg4 {[%clk 0:03:03.3]}
7. Be2 {[%clk 0:03:04.1]} 7... e6 {[%clk 0:03:01.1]} 8. c3 {[%clk 0:03:02.8]}
8... Qc7 {[%clk 0:02:58]} 9. Bg5 {[%clk 0:02:58.7]} 9... Nbd7 {[%clk 0:02:57.7]}
10. Qd2 {[%clk 0:02:56.1]} 10... Bd6 {[%clk 0:02:55.6]} 11. Qe3 {[%clk
0:02:51.1]} 11... O-O-O {[%clk 0:02:52.4]} 12. Ne4 {[%clk 0:02:49.6]} 12... Nd5
{[%clk 0:02:21.4]} 13. Nxd6+ {[%clk 0:02:30.1]} 13... Qxd6 {[%clk 0:02:20.9]}
14. Qd2 {[%clk 0:02:31.1]} 14... f6 {[%clk 0:02:17.7]} 15. Be3 {[%clk
0:02:31.2]} 15... Nxe3 {[%clk 0:02:16.8]} 16. Qxe3 {[%clk 0:02:31.7]} 16... e5
{[%clk 0:02:14.2]} 17. O-O-O {[%clk 0:02:31.6]} 17... Rhe8 {[%clk 0:01:58.2]}
18. Bxg4 {[%clk 0:02:19.3]} 18... hxg4 {[%clk 0:01:57.9]} 19. dxe5 {[%clk
0:02:20.4]} 19... Qxe5 {[%clk 0:01:57]} 20. Qxa7 {[%clk 0:02:21.8]} 20... Nc5
{[%clk 0:01:47.9]} 21. Qa8+ {[%clk 0:02:10.4]} 21... Kc7 {[%clk 0:01:47.1]} 22.
Qa5+ {[%clk 0:02:10.4]} 22... b6 {[%clk 0:01:45.1]} 23. Qa7+ {[%clk 0:02:03]}
23... Nb7 {[%clk 0:01:44.8]} 24. Ne2 {[%clk 0:00:35.3]} 24... Qxe2 {[%clk
0:01:36.8]} 25. Rxd8 {[%clk 0:00:30.5]} 25... Rxd8 {[%clk 0:01:35.9]} 0-1

[Event "*** Titled Tuesday Blitz"]
[Site "Chess.com"]
[Date "2018.06.05"]
[Round "3"]
[White "Muracle"]
[Black "Usurpov"]
[Result "1-0"]
[WhiteElo "2448"]
[BlackElo "2422"]
[TimeControl "180+2"]
[EndTime "13:39:08 PDT"]
[Termination "Muracle won by resignation"]

1. Nf3 {[%clk 0:02:47]} 1... Nf6 {[%clk 0:03:00.4]} 2. g3 {[%clk 0:02:48.1]}
2... g6 {[%clk 0:03:01.6]} 3. Bg2 {[%clk 0:02:49.7]} 3... Bg7 {[%clk 0:03:03.1]}
4. O-O {[%clk 0:02:51.6]} 4... O-O {[%clk 0:03:04.2]} 5. d4 {[%clk 0:02:52.9]}
5... d5 {[%clk 0:03:04.6]} 6. b3 {[%clk 0:02:53.5]} 6... Ne4 {[%clk 0:03:00.6]}
7. Bb2 {[%clk 0:02:54.4]} 7... c6 {[%clk 0:03:00.5]} 8. Ne5 {[%clk 0:02:46.8]}
8... Nd7 {[%clk 0:02:49.5]} 9. Nxd7 {[%clk 0:02:45.1]} 9... Bxd7 {[%clk
0:02:48.9]} 10. c4 {[%clk 0:02:47]} 10... e6 {[%clk 0:02:43]} 11. Nd2 {[%clk
0:02:46.5]} 11... Nxd2 {[%clk 0:02:25.6]} 12. Qxd2 {[%clk 0:02:48.4]} 12... a5
{[%clk 0:02:27.2]} 13. Rac1 {[%clk 0:02:44.4]} 13... a4 {[%clk 0:02:25.1]} 14.
Rfd1 {[%clk 0:02:44.8]} 14... axb3 {[%clk 0:02:16.2]} 15. axb3 {[%clk
0:02:46.7]} 15... Qb6 {[%clk 0:02:16.8]} 16. Qd3 {[%clk 0:02:38.7]} 16... Ra2
{[%clk 0:02:13.5]} 17. Ba1 {[%clk 0:02:34.8]} 17... Rfa8 {[%clk 0:02:07.9]} 18.
e4 {[%clk 0:02:33.6]} 18... dxe4 {[%clk 0:01:37.2]} 19. Bxe4 {[%clk 0:02:07.9]}
19... R8a3 {[%clk 0:01:32.6]} 20. Rb1 {[%clk 0:02:02.5]} 20... e5 {[%clk
0:00:53.3]} 21. c5 {[%clk 0:01:56.5]} 21... Qa7 {[%clk 0:00:42.8]} 22. dxe5
{[%clk 0:01:51.4]} 22... Rxa1 {[%clk 0:00:34.9]} 23. Qxd7 {[%clk 0:01:49.3]}
23... Rxb1 {[%clk 0:00:33.8]} 24. Bxb1 {[%clk 0:01:48]} 24... Qxc5 {[%clk
0:00:28.3]} 25. e6 {[%clk 0:01:45.8]} 25... Qf8 {[%clk 0:00:14.7]} 26. e7 {[%clk
0:01:44.2]} 1-0

[Event "*** Titled Tuesday Blitz"]
[Site "Chess.com"]
[Date "2018.06.05"]
[Round "3"]
[White "Duhless"]
[Black "FearNoEvil12"]
[Result "1-0"]
[WhiteElo "2808"]
[BlackElo "1957"]
[TimeControl "180+2"]
[EndTime "13:39:10 PDT"]
[Termination "Duhless won by checkmate"]

1. Nf3 {[%clk 0:03:01]} 1... b5 {[%clk 0:02:59.7]} 2. e4 {[%clk 0:02:58.9]} 2...
a6 {[%clk 0:02:59.6]} 3. d4 {[%clk 0:02:59.3]} 3... Bb7 {[%clk 0:03:00.9]} 4.
Bd3 {[%clk 0:03:00.8]} 4... e6 {[%clk 0:03:02.1]} 5. O-O {[%clk 0:03:01.7]} 5...
Nf6 {[%clk 0:03:02.9]} 6. Re1 {[%clk 0:03:02.2]} 6... d6 {[%clk 0:03:03.8]} 7.
c3 {[%clk 0:03:00.8]} 7... Nbd7 {[%clk 0:03:04.1]} 8. a4 {[%clk 0:03:01.3]} 8...
bxa4 {[%clk 0:03:03.6]} 9. Rxa4 {[%clk 0:03:00.2]} 9... h6 {[%clk 0:03:04.8]}
10. Nbd2 {[%clk 0:03:00.3]} 10... g5 {[%clk 0:03:04.7]} 11. Nf1 {[%clk
0:03:00.8]} 11... g4 {[%clk 0:03:04.8]} 12. N3d2 {[%clk 0:03:01.1]} 12... h5
{[%clk 0:03:05.8]} 13. Ne3 {[%clk 0:03:00.7]} 13... h4 {[%clk 0:03:02.6]} 14.
Nxg4 {[%clk 0:03:00.7]} 14... Rg8 {[%clk 0:03:02.6]} 15. Nxf6+ {[%clk
0:02:58.9]} 15... Qxf6 {[%clk 0:03:01]} 16. h3 {[%clk 0:02:59.6]} 16... Bh6
{[%clk 0:02:32.2]} 17. Bf1 {[%clk 0:02:54.3]} 17... Ke7 {[%clk 0:02:22.8]} 18.
Rb4 {[%clk 0:02:50.2]} 18... Nb6 {[%clk 0:02:04.7]} 19. Nc4 {[%clk 0:02:41.8]}
19... a5 {[%clk 0:01:43.1]} 20. Rb3 {[%clk 0:02:41.5]} 20... Bxc1 {[%clk
0:01:33.4]} 21. Nxb6 {[%clk 0:02:40.6]} 21... cxb6 {[%clk 0:01:21.7]} 22. Qxc1
{[%clk 0:02:39.2]} 22... Ba6 {[%clk 0:01:18.3]} 23. c4 {[%clk 0:02:32.6]} 23...
Qxd4 {[%clk 0:01:04.2]} 24. Rd3 {[%clk 0:02:32.2]} 24... Qg7 {[%clk 0:00:33.2]}
25. Qf4 {[%clk 0:02:25.5]} 25... Rad8 {[%clk 0:00:24.7]} 26. Qxh4+ {[%clk
0:02:24.5]} 26... Ke8 {[%clk 0:00:25.3]} 27. Rg3 {[%clk 0:02:21.5]} 27... Qf8
{[%clk 0:00:21.9]} 28. Rxg8 {[%clk 0:02:21.9]} 28... Qxg8 {[%clk 0:00:22.8]} 29.
f3 {[%clk 0:02:23.4]} 29... Kd7 {[%clk 0:00:18.5]} 30. Qf2 {[%clk 0:02:25.3]}
30... Rb8 {[%clk 0:00:15.6]} 31. Rd1 {[%clk 0:02:25]} 31... Qc8 {[%clk
0:00:14.5]} 32. e5 {[%clk 0:02:24]} 32... d5 {[%clk 0:00:09.3]} 33. cxd5 {[%clk
0:02:23.8]} 33... Bxf1 {[%clk 0:00:10.7]} 34. dxe6+ {[%clk 0:02:23.4]} 34...
Kxe6 {[%clk 0:00:12.1]} 35. Rd6+ {[%clk 0:02:21.8]} 35... Kxe5 {[%clk
0:00:11.8]} 36. Qd4+ {[%clk 0:02:21.3]} 36... Kf5 {[%clk 0:00:12.5]} 37. Qf6#
{[%clk 0:02:22.5]} 1-0

[Event "*** Titled Tuesday Blitz"]
[Site "Chess.com"]
[Date "2018.06.05"]
[Round "3"]
[White "PowerThinking2650"]
[Black "Colombiano07"]
[Result "1-0"]
[WhiteElo "2343"]
[BlackElo "2221"]
[TimeControl "180+2"]
[EndTime "13:39:15 PDT"]
[Termination "PowerThinking2650 won by resignation"]

1. e4 {[%clk 0:03:01.9]} 1... c5 {[%clk 0:02:54.9]} 2. Nf3 {[%clk 0:03:01.6]}
2... Nc6 {[%clk 0:02:55.8]} 3. Nc3 {[%clk 0:03:01.3]} 3... g6 {[%clk 0:02:56.1]}
4. g3 {[%clk 0:02:59.7]} 4... Bg7 {[%clk 0:02:57.3]} 5. Bg2 {[%clk 0:03:00.8]}
5... e5 {[%clk 0:02:58.5]} 6. Nd5 {[%clk 0:02:57.2]} 6... Nge7 {[%clk
0:02:58.7]} 7. c4 {[%clk 0:02:57]} 7... O-O {[%clk 0:02:59.2]} 8. d3 {[%clk
0:02:58.1]} 8... d6 {[%clk 0:03:00.5]} 9. h4 {[%clk 0:02:57.8]} 9... h5 {[%clk
0:03:00.7]} 10. Be3 {[%clk 0:02:55.7]} 10... Bg4 {[%clk 0:03:00.4]} 11. Qd2
{[%clk 0:02:55.9]} 11... Nxd5 {[%clk 0:02:57.5]} 12. cxd5 {[%clk 0:02:54]} 12...
Bxf3 {[%clk 0:02:55.2]} 13. Bxf3 {[%clk 0:02:54.4]} 13... Nd4 {[%clk 0:02:56.5]}
14. Bxd4 {[%clk 0:02:45.4]} 14... exd4 {[%clk 0:02:57.7]} 15. g4 {[%clk
0:02:35.2]} 15... hxg4 {[%clk 0:02:43.5]} 16. Bxg4 {[%clk 0:02:35.6]} 16... b5
{[%clk 0:02:11.4]} 17. h5 {[%clk 0:02:36.1]} 17... g5 {[%clk 0:02:00.6]} 18. h6
{[%clk 0:02:31.8]} 18... Be5 {[%clk 0:02:00.3]} 19. Rh5 {[%clk 0:02:23.5]} 19...
Bf4 {[%clk 0:02:00.2]} 20. Qe2 {[%clk 0:02:21.5]} 20... Kh8 {[%clk 0:01:53]} 21.
Kf1 {[%clk 0:02:20.5]} 21... Qf6 {[%clk 0:01:39.8]} 22. Kg2 {[%clk 0:02:19.4]}
22... Rac8 {[%clk 0:01:34.1]} 23. a4 {[%clk 0:02:15]} 23... a6 {[%clk
0:01:33.1]} 24. axb5 {[%clk 0:02:16]} 24... axb5 {[%clk 0:01:35]} 25. Bxc8
{[%clk 0:02:05.4]} 25... Rxc8 {[%clk 0:01:30.9]} 26. Qg4 {[%clk 0:02:06.3]}
26... Re8 {[%clk 0:01:22.3]} 27. Qf5 {[%clk 0:01:57.7]} 27... Qe7 {[%clk
0:00:22]} 28. Ra7 {[%clk 0:01:44.3]} 28... Qf8 {[%clk 0:00:12.8]} 29. Rxf7
{[%clk 0:01:40.8]} 1-0

[Event "*** Titled Tuesday Blitz"]
[Site "Chess.com"]
[Date "2018.06.05"]
[Round "3"]
[White "Hrant_ChessMood"]
[Black "Bryakin_Mikhail"]
[Result "1-0"]
[WhiteElo "2940"]
[BlackElo "2651"]
[TimeControl "180+2"]
[EndTime "13:39:19 PDT"]
[Termination "Hrant_ChessMood won by resignation"]

1. d4 {[%clk 0:03:01.9]} 1... d5 {[%clk 0:02:56.9]} 2. c4 {[%clk 0:03:01.9]}
2... c6 {[%clk 0:02:58.2]} 3. Nf3 {[%clk 0:03:03.1]} 3... Nf6 {[%clk 0:02:59.3]}
4. Nc3 {[%clk 0:03:04.2]} 4... a6 {[%clk 0:03:00.4]} 5. g3 {[%clk 0:03:01.1]}
5... b5 {[%clk 0:03:00.2]} 6. b3 {[%clk 0:03:00.9]} 6... Bf5 {[%clk 0:02:58.2]}
7. Bg2 {[%clk 0:02:59.9]} 7... e6 {[%clk 0:02:59]} 8. O-O {[%clk 0:03:00.7]}
8... Bb4 {[%clk 0:02:58.3]} 9. Bb2 {[%clk 0:02:58.6]} 9... O-O {[%clk
0:02:58.5]} 10. Ne5 {[%clk 0:02:59]} 10... Nfd7 {[%clk 0:02:45.1]} 11. Nd3
{[%clk 0:02:58.9]} 11... Bxc3 {[%clk 0:02:35.1]} 12. Bxc3 {[%clk 0:02:59.3]}
12... a5 {[%clk 0:02:33.7]} 13. Rc1 {[%clk 0:02:47.6]} 13... Na6 {[%clk
0:02:32.7]} 14. Nf4 {[%clk 0:02:32.6]} 14... Rc8 {[%clk 0:02:26.1]} 15. Qd2
{[%clk 0:02:33.1]} 15... b4 {[%clk 0:02:24.9]} 16. Bb2 {[%clk 0:02:34.3]} 16...
Qb6 {[%clk 0:02:20.8]} 17. Rfd1 {[%clk 0:02:22.9]} 17... h6 {[%clk 0:02:20.1]}
18. h3 {[%clk 0:02:23.5]} 18... Nf6 {[%clk 0:02:14.9]} 19. Kh2 {[%clk
0:02:22.5]} 19... Bh7 {[%clk 0:02:04.4]} 20. f3 {[%clk 0:02:17.6]} 20... Rfd8
{[%clk 0:02:03.6]} 21. Qe3 {[%clk 0:02:12.9]} 21... e5 {[%clk 0:01:36.8]} 22.
Nd3 {[%clk 0:01:52.4]} 22... e4 {[%clk 0:00:57]} 23. Ne5 {[%clk 0:01:50.8]}
23... exf3 {[%clk 0:00:46.8]} 24. exf3 {[%clk 0:01:49.7]} 24... Nd7 {[%clk
0:00:42.1]} 25. Nxd7 {[%clk 0:01:43.7]} 25... Rxd7 {[%clk 0:00:44]} 26. cxd5
{[%clk 0:01:40.3]} 26... Rxd5 {[%clk 0:00:43.2]} 27. f4 {[%clk 0:01:41.7]} 27...
Rdd8 {[%clk 0:00:41.6]} 28. Qf3 {[%clk 0:01:34]} 28... Nb8 {[%clk 0:00:36.3]}
29. d5 {[%clk 0:01:30.6]} 29... cxd5 {[%clk 0:00:33.6]} 30. Rxc8 {[%clk
0:01:30.9]} 30... Rxc8 {[%clk 0:00:35.5]} 31. Qg4 {[%clk 0:01:32.3]} 1-0

[Event "*** Titled Tuesday Blitz"]
[Site "Chess.com"]
[Date "2018.06.05"]
[Round "3"]
[White "PrinceMurad09"]
[Black "Dr-Bassem"]
[Result "0-1"]
[WhiteElo "2407"]
[BlackElo "2684"]
[TimeControl "180+2"]
[EndTime "13:39:22 PDT"]
[Termination "Dr-Bassem won by resignation"]

1. e4 {[%clk 0:02:58.4]} 1... e5 {[%clk 0:03:00.6]} 2. Nf3 {[%clk 0:02:59.4]}
2... Nc6 {[%clk 0:03:01.8]} 3. Bc4 {[%clk 0:03:00.5]} 3... Nf6 {[%clk
0:03:00.7]} 4. d3 {[%clk 0:03:01.1]} 4... h6 {[%clk 0:03:01.4]} 5. O-O {[%clk
0:03:02]} 5... d6 {[%clk 0:03:02.6]} 6. h3 {[%clk 0:03:03.1]} 6... g5 {[%clk
0:03:02.7]} 7. Re1 {[%clk 0:03:02]} 7... g4 {[%clk 0:03:02.2]} 8. hxg4 {[%clk
0:03:01.5]} 8... Bxg4 {[%clk 0:03:04.1]} 9. Kf1 {[%clk 0:02:59.9]} 9... Rg8
{[%clk 0:02:54.1]} 10. Be3 {[%clk 0:03:00.1]} 10... Qd7 {[%clk 0:02:46.2]} 11.
Nbd2 {[%clk 0:03:00.9]} 11... O-O-O {[%clk 0:02:29.5]} 12. Ke2 {[%clk
0:03:01.5]} 12... d5 {[%clk 0:02:25.5]} 13. exd5 {[%clk 0:03:02.3]} 13... Nxd5
{[%clk 0:02:25.9]} 14. Bxd5 {[%clk 0:03:02]} 14... Qxd5 {[%clk 0:02:26]} 15. Ne4
{[%clk 0:02:20.5]} 15... Be7 {[%clk 0:02:15.9]} 16. Nc3 {[%clk 0:02:19.8]} 16...
Qa5 {[%clk 0:02:10.3]} 17. a3 {[%clk 0:02:11.1]} 17... Nd4+ {[%clk 0:01:54.9]}
18. Kd2 {[%clk 0:02:03.5]} 18... e4 {[%clk 0:01:43]} 19. Bxd4 {[%clk 0:01:55.2]}
19... Rxd4 {[%clk 0:01:38.1]} 20. b4 {[%clk 0:01:33.3]} 20... Bg5+ {[%clk
0:01:28.8]} 21. Re3 {[%clk 0:01:27.5]} 21... Qf5 {[%clk 0:01:26.2]} 22. Nxe4
{[%clk 0:01:22.1]} 22... Rxe4 {[%clk 0:01:05.5]} 23. Nxg5 {[%clk 0:00:48.7]}
23... Qxf2+ {[%clk 0:01:02.5]} 24. Re2 {[%clk 0:00:39.6]} 24... Rxe2+ {[%clk
0:01:01.3]} 0-1